[Event "Fredericia WIM 2019"]
[Site "Fredericia"]
[Date "2019.05.30"]
[Round "2.6"]
[White "Keetman, Maaike"]
[Black "Guindy, Esmat Susanne"]
[Result "1/2-1/2"]
[ECO "C05"]
[WhiteElo "2146"]
[BlackElo "2156"]
[Annotator "ChessBase"]
[PlyCount "97"]
[EventDate "2019.05.29"]
[EventType "tourn"]
[EventCountry "DEN"]
[SourceTitle "playchess.com"]
[Source "ChessBase"]
[SourceQuality "1"]
[TimeControl "40/5400+30:1800+30"]

1. e4 {[%emt 0:00:00]} e6 {[%emt 0:00:00]} 2. d4 {[%emt 0:00:00]} d5 {[%emt 0:00:00]} 3. Nd2 {[%emt 0:00:00]} Nf6 {[%emt 0:00:08]} 4. e5 {[%emt 0:00:00]} Nfd7 {[%emt 0:00:09]} 5. f4 {[%emt 0:00:00]} c5 {[%emt 0:00:10]} 6. c3 {[%emt 0:00:01]} Nc6 {[%emt 0:00:27]} 7. Ndf3 {[%emt 0:00:08]} cxd4 {[%emt 0:00:16]} 8. cxd4 {[%emt 0:00:07]} a5 {[%emt 0:00:09]} 9. a4 {[%emt 0:05:25]} Qb6 {[%emt 0:04:56]} 10. g3 {[%emt 0:00:57]} f6 {[%emt 0:04:06]} 11. Bh3 {[%emt 0:03:21]} Bb4+ {[%emt 0:08:33]} 12. Kf1 {[%emt 0:00:33]} f5 {[%emt 0:15:10]} 13. Kg2 {[%emt 0:10:19]} O-O {[%emt 0:04:49]} 14. Ne2 {[%emt 0:01:28]} Qa6 {[%emt 0:03:14]} 15. g4 {[%emt 0:08:32]} Ne7 {[%emt 0:05:28]} 16. Ng3 {[%emt 0:06:29]} b5 {[%emt 0:04:05]} 17. gxf5 {[%emt 0:10:21]} exf5 {[%emt 0:01:16]} 18. Rg1 {[%emt 0:01:02]} bxa4 {[%emt 0:02:52]} 19. Kh1 {[%emt 0:05:30]} Qh6 {[%emt 0:03:12]} 20. Ng5 {[%emt 0:06:02]} Ra6 {[%emt 0:06:09]} 21. Qc2 {[%emt 0:14:55]} Rc6 {[%emt 0:04:54]} 22. Qxa4 {[%emt 0:03:35]} Nb6 {[%emt 0:00:39]} 23. Qd1 {[%emt 0:01:45]} Qh4 {[%emt 0:05:13]} 24. Bf1 {[%emt 0:02:38]} Rh6 {[%emt 0:05:54]} 25. Nf3 {[%emt 0:02:11]} Qg4 {[%emt 0:00:51]} 26. Ne4 {[%emt 0:03:07]} Rxh2+ {[%emt 0:04:41]} 27. Kxh2 {[%emt 0:01:00]} Qh5+ {[%emt 0:00:11]} 28. Bh3 {[%emt 0:01:25]} fxe4 {[%emt 0:02:54]} 29. Ng5 {[%emt 0:00:24]} Qh4 {[%emt 0:01:23]} 30. Kg2 {[%emt 0:03:10]} Bxh3+ {[%emt 0:07:23]} 31. Nxh3 {[%emt 0:00:09]} Nf5 {[%emt 0:00:09]} 32. Kh2 {[%emt 0:01:23]} Nc4 {[%emt 0:01:34]} 33. b3 {[%emt 0:02:59]} Nce3 {[%emt 0:00:58]} 34. Bxe3 {[%emt 0:02:53]} Nxe3 {[%emt 0:00:07]} 35. Qe2 {[%emt 0:00:18]} Rxf4 {[%emt 0:01:32]} 36. Qxe3 {[%emt 0:03:59]} Rf3 {[%emt 0:00:06]} 37. Qxf3 {[%emt 0:01:00]} exf3 {[%emt 0:00:12]} 38. Rac1 {[%emt 0:01:06]} g6 {[%emt 0:02:36]} 39. Rc8+ {[%emt 0:00:24]} Kf7 {[%emt 0:00:41]} 40. Rf1 {[%emt 0:00:34]} Qg4 {[%emt 0:01:45]} 41. Rxf3+ {[%emt 0:01:50]} Kg7 {[%emt 0:01:53]} 42. Rc7+ {[%emt 0:01:10]} Kg8 {[%emt 0:08:47]} 43. Rf4 {[%emt 0:03:45]} Qe2+ {[%emt 0:00:22]} 44. Rf2 {[%emt 0:00:09]} Qe3 {[%emt 0:01:42]} 45. Rc8+ {[%emt 0:07:38]} Kg7 {[%emt 0:00:57]} 46. Rc7+ {[%emt 0:00:05]} Kg8 {[%emt 0:00:25]} 47. Rc8+ {[%emt 0:00:25]} Kg7 {[%emt 0:00:14]} 48. Rc7+ {[%emt 0:00:03]} Kg8 {[%emt 0:00:59]} 49. Rc8+ {[%emt 0:00:39]} 1/2-1/2

[Event "Fredericia WIM 2019"]
[Site "Fredericia"]
[Date "2019.05.30"]
[Round "2.7"]
[White "Sucikova, Svetlana"]
[Black "Kanakova, Natalie"]
[Result "0-1"]
[ECO "A22"]
[WhiteElo "2110"]
[BlackElo "2205"]
[Annotator "ChessBase"]
[PlyCount "106"]
[EventDate "2019.05.29"]
[EventType "tourn"]
[EventCountry "DEN"]
[SourceTitle "playchess.com"]
[Source "ChessBase"]
[SourceQuality "1"]
[TimeControl "40/5400+30:1800+30"]

1. c4 {[%emt 0:00:02]} e5 {[%emt 0:00:13]} 2. Nc3 {[%emt 0:00:26]} Nf6 {[%emt 0:01:07]} 3. g3 {[%emt 0:00:24]} c6 {[%emt 0:00:41]} 4. Bg2 {[%emt 0:03:58]} d5 {[%emt 0:01:12]} 5. cxd5 {[%emt 0:01:52]} cxd5 {[%emt 0:00:05]} 6. d4 {[%emt 0:00:06]} e4 {[%emt 0:09:23]} 7. Bg5 {[%emt 0:00:23]} Bb4 {[%emt 0:03:46]} 8. Qb3 {[%emt 0:01:50]} Bxc3+ {[%emt 0:04:24]} 9. bxc3 {[%emt 0:01:23]} Nbd7 {[%emt 0:00:40]} 10. Nh3 {[%emt 0:06:31]} O-O {[%emt 0:01:29]} 11. Nf4 {[%emt 0:02:44]} h6 {[%emt 0:00:47]} 12. Bxf6 {[%emt 0:03:08]} Nxf6 {[%emt 0:00:05]} 13. e3 {[%emt 0:01:49]} Re8 {[%emt 0:08:25]} 14. O-O {[%emt 0:00:37]} b6 {[%emt 0:00:37]} 15. Rfc1 {[%emt 0:06:31]} Ba6 {[%emt 0:00:29]} 16. Bf1 {[%emt 0:00:10]} Bxf1 {[%emt 0:04:21]} 17. Kxf1 {[%emt 0:00:07]} g5 {[%emt 0:01:00]} 18. Ne2 {[%emt 0:03:01]} Qd7 {[%emt 0:02:23]} 19. Kg2 {[%emt 0:03:51]} Qf5 {[%emt 0:11:03]} 20. Ng1 {[%emt 0:00:07]} h5 {[%emt 0:01:20]} 21. c4 {[%emt 0:02:16]} Re6 {[%emt 0:08:21]} 22. Rc2 {[%emt 0:03:42]} h4 {[%emt 0:03:19]} 23. cxd5 {[%emt 0:01:31]} Nxd5 {[%emt 0:00:15]} 24. Rac1 {[%emt 0:03:09]} Rf6 {[%emt 0:02:46]} 25. Qb2 {[%emt 0:06:36]} Kg7 26. Rc6 {[%emt 0:05:11]} h3+ {[%emt 0:08:38]} 27. Nxh3 {[%emt 0:02:08]} Qf3+ {[%emt 0:00:33]} 28. Kg1 {[%emt 0:00:50]} Qh5 {[%emt 0:00:56]} 29. Rxf6 {[%emt 0:05:31]} Nxf6 {[%emt 0:00:06]} 30. Qb5 {[%emt 0:02:03]} Kg6 {[%emt 0:02:47]} 31. Rc6 {[%emt 0:05:04]} Rh8 {[%emt 0:02:43]} 32. f4 {[%emt 0:14:30]} Qd1+ {[%emt 0:00:38]} 33. Kg2 {[%emt 0:00:09]} Qf3+ {[%emt 0:00:24]} 34. Kg1 {[%emt 0:00:02]} Qd1+ {[%emt 0:09:40]} 35. Kg2 {[%emt 0:00:32]} Qf3+ {[%emt 0:00:46]} 36. Kg1 {[%emt 0:00:05]} Qxe3+ {[%emt 0:00:59]} 37. Nf2 {[%emt 0:00:22]} gxf4 {[%emt 0:01:01]} 38. Kf1 {[%emt 0:06:35]} Qxd4 {[%emt 0:02:31]} 39. g4 {[%emt 0:09:31]} Qa1+ {[%emt 0:00:28]} 40. Ke2 {[%emt 0:00:02]} Qxa2+ {[%emt 0:00:26]} 41. Kf1 {[%emt 0:03:03]} Qa1+ {[%emt 0:04:10]} 42. Ke2 {[%emt 0:00:02]} f3+ {[%emt 0:06:22]} 43. Ke3 {[%emt 0:00:09]} Qe1+ {[%emt 0:00:09]} 44. Kf4 {[%emt 0:00:06]} Qd2+ {[%emt 0:00:29]} 45. Kg3 {[%emt 0:01:21]} Qg5 {[%emt 0:00:43]} 46. Qxg5+ {[%emt 0:08:50]} Kxg5 {[%emt 0:00:04]} 47. Nh3+ {[%emt 0:00:06]} Rxh3+ {[%emt 0:03:31]} 48. Kxh3 {[%emt 0:00:02]} f2 {[%emt 0:03:20]} 49. Kg2 {[%emt 0:02:11]} Nxg4 {[%emt 0:00:09]} 50. h3 {[%emt 0:00:59]} Ne5 {[%emt 0:00:09]} 51. Rc7 {[%emt 0:00:35]} e3 {[%emt 0:01:42]} 52. Rxa7 {[%emt 0:02:22]} Nf3 {[%emt 0:02:43]} 53. Rxf7 {[%emt 0:06:52]} e2 {[%emt 0:00:27]} 0-1

[Event "Fredericia WIM 2019"]
[Site "Fredericia"]
[Date "2019.05.30"]
[Round "2.8"]
[White "Sahl, Sheila Barth"]
[Black "Nilssen, Ellen Fredericia"]
[Result "1-0"]
[ECO "A45"]
[WhiteElo "2127"]
[BlackElo "2129"]
[Annotator "ChessBase"]
[PlyCount "71"]
[EventDate "2019.05.29"]
[EventType "tourn"]
[EventCountry "DEN"]
[SourceTitle "playchess.com"]
[Source "ChessBase"]
[SourceQuality "1"]
[TimeControl "40/5400+30:1800+30"]

1. d4 {[%emt 0:00:00]} Nf6 {[%emt 0:00:00]} 2. Bf4 {[%emt 0:00:00]} d5 {[%emt 0:00:24]} 3. e3 {[%emt 0:00:11]} g6 {[%emt 0:01:53]} 4. Nc3 {[%emt 0:00:54]} Bg7 {[%emt 0:01:43]} 5. h4 {[%emt 0:00:57]} c5 {[%emt 0:07:04]} 6. Nb5 {[%emt 0:00:55]} Na6 {[%emt 0:00:34]} 7. c3 {[%emt 0:00:41]} Bd7 {[%emt 0:08:58]} 8. a4 {[%emt 0:08:25]} c4 {[%emt 0:06:21]} 9. Be2 {[%emt 0:02:23]} Qb6 {[%emt 0:06:18]} 10. h5 {[%emt 0:02:51]} Bxb5 {[%emt 0:02:50]} 11. axb5 {[%emt 0:00:18]} Qxb5 {[%emt 0:00:06]} 12. Qc2 {[%emt 0:11:54]} Qc6 {[%emt 0:07:53]} 13. h6 {[%emt 0:19:19]} Bf8 {[%emt 0:00:08]} 14. Nf3 {[%emt 0:00:04]} Nd7 {[%emt 0:02:29]} 15. e4 {[%emt 0:06:09]} Rc8 {[%emt 0:17:55]} 16. Ne5 {[%emt 0:03:53]} Nxe5 {[%emt 0:05:34]} 17. Bxe5 {[%emt 0:00:09]} f6 {[%emt 0:00:29]} 18. exd5 {[%emt 0:03:46]} Qxd5 {[%emt 0:03:12]} 19. Bf3 {[%emt 0:02:31]} Qd7 {[%emt 0:02:56]} 20. Bg3 {[%emt 0:00:59]} Nb8 {[%emt 0:11:15]} 21. Bxb8 {[%emt 0:02:49]} Rxb8 {[%emt 0:00:01]} 22. Rxa7 {[%emt 0:00:15]} e6 {[%emt 0:03:06]} 23. Qe2 {[%emt 0:02:09]} Bd6 {[%emt 0:03:04]} 24. Qxc4 {[%emt 0:06:08]} O-O {[%emt 0:03:49]} 25. O-O {[%emt 0:03:26]} Rfc8 {[%emt 0:00:10]} 26. Qb3 {[%emt 0:00:40]} Rc7 {[%emt 0:00:17]} 27. Re1 {[%emt 0:00:28]} Kf7 {[%emt 0:00:16]} 28. Rxe6 {[%emt 0:02:24]} Qxe6 {[%emt 0:03:20]} 29. Bd5 {[%emt 0:00:05]} Re8 {[%emt 0:00:23]} 30. g3 {[%emt 0:00:19]} Rce7 {[%emt 0:00:53]} 31. Bxe6+ {[%emt 0:00:35]} Rxe6 {[%emt 0:00:03]} 32. Rxb7+ {[%emt 0:00:22]} Kg8 {[%emt 0:00:42]} 33. Rg7+ {[%emt 0:01:14]} Kh8 {[%emt 0:00:12]} 34. Qb7 {[%emt 0:00:11]} Be7 {[%emt 0:01:39]} 35. Qd7 {[%emt 0:00:40]} Re1+ {[%emt 0:00:09]} 36. Kg2 {[%emt 0:00:11]} 1-0

[Event "Fredericia WIM 2019"]
[Site "Fredericia"]
[Date "2019.05.30"]
[Round "2.9"]
[White "Kakulidis, Ellen"]
[Black "Mayrhuber, Nikola"]
[Result "1/2-1/2"]
[ECO "A45"]
[WhiteElo "2014"]
[BlackElo "1985"]
[Annotator "NA"]
[PlyCount "79"]
[EventDate "2019.05.29"]
[EventType "tourn"]
[EventCountry "DEN"]
[SourceTitle "playchess.com"]
[Source "ChessBase"]
[SourceQuality "1"]
[TimeControl "40/5400+30:1800+30"]

1. d4 {[%emt 0:00:00]} Nf6 {[%emt 0:00:00]} 2. g3 {[%emt 0:00:00]} d5 {[%emt 0:00:00]} 3. Nf3 {[%emt 0:00:00]} e6 {[%emt 0:00:03]} 4. Bg2 {[%emt 0:00:00]} b5 {[%emt 0:00:48]} 5. O-O {[%emt 0:04:46]} Be7 {[%emt 0:00:21]} 6. Ne5 {[%emt 0:00:05]} Nfd7 {[%emt 0:02:36]} 7. Nxd7 {[%emt 0:15:54]} Nxd7 {[%emt 0:00:14]} 8. a4 {[%emt 0:00:24]} b4 {[%emt 0:00:50]} 9. c4 {[%emt 0:00:57]} bxc3 {[%emt 0:00:54]} 10. Nxc3 {[%emt 0:01:26]} Ba6 {[%emt 0:00:48]} 11. Re1 {[%emt 0:04:24]} Rb8 {[%emt 0:04:47]} 12. e4 {[%emt 0:04:35]} c6 {[%emt 0:04:11]} 13. h4 {[%emt 0:08:00]} O-O {[%emt 0:04:15]} 14. exd5 {[%emt 0:11:42]} cxd5 {[%emt 0:00:15]} 15. Nb5 {[%emt 0:00:17]} Bf6 {[%emt 0:05:44]} 16. Bf4 {[%emt 0:05:45]} Rb7 {[%emt 0:01:17]} 17. Bf1 {[%emt 0:00:14]} Qa5 {[%emt 0:05:08]} 18. b4 {[%emt 0:04:16]} Qxb4 {[%emt 0:18:11]} 19. Bd6 {[%emt 0:00:56]} Qa5 {[%emt 0:00:46]} 20. Bxf8 {[%emt 0:01:21]} Nxf8 {[%emt 0:01:41]} 21. Qg4 {[%emt 0:07:38]} Bxb5 {[%emt 0:10:09]} 22. axb5 {[%emt 0:01:24]} Qb4 {[%emt 0:03:50]} 23. Red1 {[%emt 0:00:43]} Ng6 {[%emt 0:02:08]} 24. Rac1 {[%emt 0:02:53]} Ne7 {[%emt 0:10:07]} 25. Qf4 {[%emt 0:08:14]} h6 {[%emt 0:05:59]} 26. Rb1 {[%emt 0:04:39]} Qa4 {[%emt 0:03:23]} 27. Ra1 {[%emt 0:00:34]} Qb4 {[%emt 0:00:13]} 28. Qd2 {[%emt 0:05:05]} Qd6 {[%emt 0:01:55]} 29. Ra6 {[%emt 0:00:29]} Qb8 {[%emt 0:00:05]} 30. Qb4 {[%emt 0:02:20]} Nf5 {[%emt 0:00:49]} 31. Qc3 {[%emt 0:01:41]} g6 {[%emt 0:02:29]} 32. Rc6 {[%emt 0:00:13]} Kg7 {[%emt 0:00:21]} 33. Rd2 {[%emt 0:00:49]} h5 {[%emt 0:00:47]} 34. Rc8 {[%emt 0:01:41]} Qd6 {[%emt 0:00:08]} 35. Rc6 {[%emt 0:00:05]} Qb8 {[%emt 0:01:22]} 36. Rd1 {[%emt 0:01:01]} Nd6 {[%emt 0:01:14]} 37. Ra1 {[%emt 0:01:46]} Nxb5 {[%emt 0:03:23]} 38. Bxb5 {[%emt 0:00:28]} Rxb5 {[%emt 0:00:05]} 39. Rc8 {[%emt 0:01:57]} Qb6 {[%emt 0:02:33]} 40. Qa3 {[%emt 0:00:45]} 1/2-1/2

[Event "Fredericia WIM 2019"]
[Site "Fredericia"]
[Date "2019.05.30"]
[Round "3.1"]
[White "Sorensen, Hampus"]
[Black "Ahlander, IM Björn"]
[Result "1-0"]
[ECO "D30"]
[WhiteElo "2343"]
[BlackElo "2421"]
[Annotator "ChessBase"]
[PlyCount "73"]
[EventDate "2019.05.29"]
[EventType "tourn"]
[EventCountry "DEN"]
[SourceTitle "playchess.com"]
[Source "ChessBase"]
[SourceQuality "1"]
[TimeControl "40/5400+30:1800+30"]

1. d4 Nf6 2. c4 e6 3. Nf3 d5 4. Bg5 Be7 5. e3 h6 6. Bxf6 Bxf6 7. Qc2 c5 8. cxd5 cxd4 9. Bb5+ Bd7 10. dxe6 Bxb5 11. exf7+ Kd7 12. Qf5+ Kc6 13. a4 Ba6 14. Na3 Qd5 15. Nxd4+ Bxd4 16. Rc1+ Bc5 17. f8=Q Rxf8 18. Qxf8 Kb6 19. a5+ Kc6 20. b4 Nd7 21. Qxa8 Qxg2 22. Rxc5+ Kd6 23. Qd8 Qxh1+ 24. Kd2 Qf3 25. Nc2 Qxf2+ 26. Kc1 Bb5 27. Qc7+ Ke7 28. Qxb7 Bd3 29. Kb2 Qxh2 30. Kb3 Qd2 31. Nd4 Qf2 {[%emt 1:42:17]} 32. Nc2 {[%emt 1:39:06]} Qd2 {[%emt 0:02:25]} 33. Nd4 {[%emt 0:02:00]} Qd1+ {[%emt 0:01:02]} 34. Kc3 {[%emt 0:00:02]} a6 {[%emt 0:00:30]} 35. Re5+ {[%emt 0:00:30]} Kf8 {[%emt 0:00:30]} 36. Qc8+ {[%emt 0:00:30]} Kf7 {[%emt 0:00:30]} 37. Qe8+ {[%emt 0:00:30]} 1-0

[Event "Fredericia WIM 2019"]
[Site "Fredericia"]
[Date "2019.05.30"]
[Round "3.6"]
[White "Mayrhuber, Nikola"]
[Black "Sahl, Sheila Barth"]
[Result "0-1"]
[ECO "D80"]
[WhiteElo "1985"]
[BlackElo "2127"]
[Annotator "ChessBase"]
[PlyCount "38"]
[EventDate "2019.05.29"]
[EventType "tourn"]
[EventCountry "DEN"]
[SourceTitle "playchess.com"]
[Source "ChessBase"]
[SourceQuality "1"]
[TimeControl "40/5400+30:1800+30"]

1. d4 {[%emt 0:00:00]} Nf6 {[%emt 0:00:00]} 2. c4 {[%emt 0:00:00]} g6 {[%emt 0:00:00]} 3. Nc3 {[%emt 0:00:00]} d5 {[%emt 0:00:03]} 4. Bg5 {[%emt 0:00:15]} Bg7 {[%emt 0:00:42]} 5. e3 {[%emt 0:03:26]} c5 {[%emt 0:02:43]} 6. cxd5 {[%emt 0:00:52]} Nxd5 {[%emt 0:02:43]} 7. Bb5+ {[%emt 0:08:33]} Nc6 {[%emt 0:02:32]} 8. Qa4 {[%emt 0:06:19]} O-O {[%emt 0:05:59]} 9. Bxc6 {[%emt 0:05:45]} bxc6 {[%emt 0:02:31]} 10. Nge2 {[%emt 0:07:21]} cxd4 {[%emt 0:06:38]} 11. exd4 {[%emt 0:05:31]} Nxc3 {[%emt 0:06:18]} 12. bxc3 {[%emt 0:01:06]} Qd5 {[%emt 0:03:29]} 13. Be3 {[%emt 0:13:35]} Qxg2 {[%emt 0:01:12]} 14. Rg1 {[%emt 0:00:50]} Qe4 {[%emt 0:02:26]} 15. Ng3 {[%emt 0:04:30]} Qd3 {[%emt 0:01:36]} 16. Qxc6 {[%emt 0:03:33]} Rb8 {[%emt 0:00:30]} 17. Rc1 {[%emt 0:01:44]} Rb1 {[%emt 0:00:41]} 18. Ne2 {[%emt 0:00:51]} Ba6 {[%emt 0:02:39]} 19. Qf3 {[%emt 0:05:13]} Rxc1+ {[%emt 0:00:46]} 0-1

[Event "Fredericia WIM 2019"]
[Site "Fredericia"]
[Date "2019.05.30"]
[Round "3.7"]
[White "Kanakova, Natalie"]
[Black "Kakulidis, Ellen"]
[Result "1-0"]
[ECO "A06"]
[WhiteElo "2205"]
[BlackElo "2014"]
[Annotator "ChessBase"]
[PlyCount "81"]
[EventDate "2019.05.29"]
[EventType "tourn"]
[EventCountry "DEN"]
[SourceTitle "playchess.com"]
[Source "ChessBase"]
[SourceQuality "1"]
[TimeControl "40/5400+30:1800+30"]

1. Nf3 {[%emt 0:00:00]} d5 {[%emt 0:00:00]} 2. e3 {[%emt 0:00:00]} e6 {[%emt 0:00:00]} 3. c4 {[%emt 0:00:06]} Nf6 {[%emt 0:00:00]} 4. b3 {[%emt 0:01:10]} Bd6 {[%emt 0:00:00]} 5. Bb2 {[%emt 0:00:29]} b6 {[%emt 0:00:00]} 6. Nc3 {[%emt 0:00:37]} a6 {[%emt 0:00:05]} 7. g3 {[%emt 0:00:54]} O-O {[%emt 0:02:39]} 8. Bg2 {[%emt 0:00:19]} Bb7 {[%emt 0:00:29]} 9. O-O {[%emt 0:00:53]} Nbd7 {[%emt 0:00:45]} 10. Qe2 {[%emt 0:03:18]} Re8 {[%emt 0:00:47]} 11. d4 {[%emt 0:11:27]} Rc8 {[%emt 0:09:44]} 12. Rfd1 {[%emt 0:03:21]} Qe7 {[%emt 0:05:14]} 13. Nd2 {[%emt 0:06:54]} c5 {[%emt 0:11:18]} 14. dxc5 {[%emt 0:02:24]} Nxc5 {[%emt 0:10:25]} 15. b4 {[%emt 0:06:22]} Ncd7 {[%emt 0:05:46]} 16. a3 {[%emt 0:01:27]} Ne5 {[%emt 0:02:44]} 17. cxd5 {[%emt 0:03:54]} exd5 {[%emt 0:00:41]} 18. Nb3 {[%emt 0:02:07]} Nc4 {[%emt 0:04:57]} 19. Nd4 {[%emt 0:09:38]} Nxb2 {[%emt 0:03:53]} 20. Qxb2 {[%emt 0:00:06]} g6 {[%emt 0:02:13]} 21. Qb3 {[%emt 0:06:08]} Qe5 {[%emt 0:02:49]} 22. Nde2 {[%emt 0:04:06]} Be7 {[%emt 0:21:00]} 23. Rd4 {[%emt 0:10:37]} b5 {[%emt 0:05:42]} 24. Rad1 {[%emt 0:01:04]} Rc4 {[%emt 0:05:20]} 25. Nxd5 {[%emt 0:03:13]} Nxd5 {[%emt 0:00:22]} 26. Bxd5 {[%emt 0:00:06]} Bxd5 {[%emt 0:00:04]} 27. Rxd5 {[%emt 0:00:06]} Qe4 {[%emt 0:01:08]} 28. R5d4 {[%emt 0:05:26]} Rxd4 {[%emt 0:00:37]} 29. Rxd4 {[%emt 0:00:17]} Qc6 {[%emt 0:00:43]} 30. Qd3 {[%emt 0:02:43]} Bf8 {[%emt 0:01:39]} 31. Rd7 {[%emt 0:01:45]} Qf6 {[%emt 0:01:22]} 32. Nf4 {[%emt 0:03:24]} Rc8 {[%emt 0:00:29]} 33. Qd5 {[%emt 0:01:11]} Rc1+ {[%emt 0:02:09]} 34. Kg2 {[%emt 0:00:04]} Rc3 {[%emt 0:00:33]} 35. e4 {[%emt 0:03:39]} Rxa3 {[%emt 0:00:43]} 36. e5 {[%emt 0:00:11]} Qf5 {[%emt 0:00:20]} 37. Rd8 {[%emt 0:04:41]} Qg5 {[%emt 0:00:57]} 38. Qd6 {[%emt 0:00:38]} Qh6 {[%emt 0:00:30]} 39. e6 {[%emt 0:00:24]} fxe6 {[%emt 0:00:51]} 40. Nxe6 {[%emt 0:00:23]} Rf3 {[%emt 0:00:26]} 41. Kxf3 {[%emt 0:30:23]} 1-0

[Event "Fredericia WIM 2019"]
[Site "Fredericia"]
[Date "2019.05.30"]
[Round "3.8"]
[White "Guindy, Esmat Susanne"]
[Black "Sucikova, Svetlana"]
[Result "0-1"]
[ECO "D51"]
[WhiteElo "2156"]
[BlackElo "2110"]
[Annotator "ChessBase"]
[PlyCount "62"]
[EventDate "2019.05.29"]
[EventType "tourn"]
[EventCountry "DEN"]
[SourceTitle "playchess.com"]
[Source "ChessBase"]
[SourceQuality "1"]
[TimeControl "40/5400+30:1800+30"]

1. d4 d5 2. c4 e6 3. Nc3 Nf6 4. Bg5 c6 5. e3 {[%emt 0:04:10]} Nbd7 {[%emt 0:00:41]} 6. cxd5 {[%emt 0:00:23]} exd5 {[%emt 0:00:30]} 7. Bd3 {[%emt 0:00:10]} Be7 {[%emt 0:00:09]} 8. Qc2 {[%emt 0:00:13]} O-O {[%emt 0:00:30]} 9. Nge2 {[%emt 0:00:22]} Re8 {[%emt 0:01:01]} 10. h3 {[%emt 0:09:25]} Nf8 {[%emt 0:00:12]} 11. g4 {[%emt 0:02:56]} Qa5 {[%emt 0:10:04]} 12. O-O-O {[%emt 0:03:22]} b5 {[%emt 0:03:16]} 13. Rdg1 {[%emt 0:08:26]} Ba6 {[%emt 0:03:15]} 14. Bxf6 {[%emt 0:02:23]} Bxf6 {[%emt 0:00:37]} 15. g5 {[%emt 0:00:37]} Be7 {[%emt 0:02:36]} 16. Nf4 {[%emt 0:01:40]} Bd6 {[%emt 0:18:06]} 17. Bxh7+ {[%emt 0:19:35]} Kh8 {[%emt 0:00:12]} 18. Nh5 {[%emt 0:01:45]} b4 {[%emt 0:00:27]} 19. Nb1 {[%emt 0:10:22]} Qxa2 {[%emt 0:04:07]} 20. b3 {[%emt 0:05:56]} Qa1 {[%emt 0:16:36]} 21. Qf5 {[%emt 0:13:06]} Ne6 {[%emt 0:01:42]} 22. g6 {[%emt 0:02:04]} Nxd4 {[%emt 0:03:17]} 23. exd4 {[%emt 0:01:08]} Re2 {[%emt 0:00:05]} 24. gxf7 {[%emt 0:07:42]} Qb2+ {[%emt 0:00:29]} 25. Kd1 {[%emt 0:00:08]} Qxd4+ {[%emt 0:01:04]} 26. Kc1 {[%emt 0:00:08]} Qb2+ {[%emt 0:00:46]} 27. Kd1 {[%emt 0:00:07]} Qxb3+ {[%emt 0:01:24]} 28. Kc1 {[%emt 0:00:07]} Qb2+ {[%emt 0:03:49]} 29. Kd1 {[%emt 0:00:04]} Bb5 {[%emt 0:00:18]} 30. Qc2 {[%emt 0:03:44]} Rxc2 {[%emt 0:00:43]} 31. Bxc2 {[%emt 0:00:05]} b3 {[%emt 0:00:18]} 0-1